bitfinex/quotes_SOLUSD_20240816
["timestamp","ask_amount","ask_price","bid_price","bid_amount"]
[1723800780129,10.36,143.97,143.9,20.0]
[1723800780330,16.7962,143.99,143.92,20.0]
[1723800780631,1.73656157,143.98,143.89,10.36]
[1723800780935,16.7962,143.99,143.92,20.0]
[1723800781717,0.50196,143.98,143.92,20.0]
[1723800785907,0.25098,143.98,143.92,20.0]
[1723800786105,0.25098,143.98,143.94,20.0]
[1723800786347,0.12549,143.98,143.94,20.0]
[1723800786647,10.48549,143.98,143.9,36.5098]
[1723800786839,10.48549,143.98,143.92,20.0]
[1723800787141,10.48549,143.98,143.94,20.0]
[1723800787348,0.12549,143.97,143.94,20.0]
[1723800787846,0.12549,143.97,143.95,1.3892792]
[1723800788445,0.12549,143.97,143.94,20.0]
[1723800788626,0.12549,143.98,143.94,20.0]
[1723800788936,0.25098,143.99,143.94,20.0]
[1723800789923,0.12549,143.98,143.94,20.0]
[1723800791406,0.25098,143.98,143.94,20.0]
[1723800791615,0.12549,143.96,143.91,20.0]
[1723800793035,0.12549,143.96,143.9,16.5098]
[1723800793348,0.12549,143.96,143.87,0.8632631]
[1723800793349,27.65713788,143.96,143.87,35.8768631]
[1723800793515,25.92028,143.96,143.87,35.8768631]
[1723800793841,0.12549,143.94,143.87,35.8768631]
[1723800794046,0.25098,143.94,143.87,35.8768631]
[1723800794251,0.12549,143.92,143.87,35.8768631]
[1723800796024,0.12549,143.93,143.87,35.8768631]
[1723800796229,0.12549,143.93,143.89,20.0]
[1723800796440,0.12549,143.94,143.89,20.0]
[1723800796441,0.37647,143.94,143.89,20.0]
[1723800797118,0.12549,143.94,143.89,20.0]
[1723800797320,0.12549,143.93,143.89,20.0]
[1723800801631,15.3093,143.96,143.89,20.0]
[1723800802169,1.20341567,144.0,143.96,20.0]
[1723800802354,1.20341567,144.0,143.97,1.38891915]
[1723800802659,6.0899,144.03,143.96,20.0]
[1723800803025,6.0899,144.03,143.98,20.0]
[1723800803224,15.7917,144.04,143.98,20.0]
[1723800803425,15.7917,144.04,143.95,10.36]
[1723800803426,15.7917,144.04,143.96,20.0]
[1723800803734,15.7917,144.04,143.97,20.0]
[1723800803933,15.7917,144.04,144.0,20.0]
[1723800804636,32.9469,144.07,144.0,20.0]
[1723800805225,20.0,144.06,144.0,20.0]
[1723800805828,0.50196,144.05,143.98,20.0]
[1723800806028,0.50196,144.05,143.97,10.36]
[1723800806029,7.44406,144.05,144.0,26.9441]
[1723800806254,6.9416,144.06,144.01,6.9435]
[1723800807542,0.37647,144.05,144.01,6.9435]
[1723800809048,7.31857,144.05,144.01,6.9435]
[1723800809242,7.31857,144.05,144.0,6.9442]
[1723800809243,19.41436385,144.05,144.0,6.9442]
[1723800809956,17.67857,144.05,144.0,6.9442]
[1723800810861,17.67857,144.05,143.99,37.3614]
[1723800810862,17.67857,144.05,144.01,6.9438]
[1723800811062,7.31857,144.05,144.01,6.9438]
[1723800811765,7.31857,144.05,144.0,6.9443]
[1723800814561,0.12549,144.03,143.99,24.3061]
[1723800814868,0.25098,144.03,144.0,6.9443]
[1723800816362,0.25098,144.04,144.01,6.9438]
[1723800817176,0.25098,144.04,144.02,6.9434]
[1723800817351,0.12549,144.04,144.02,6.9434]
[1723800818467,0.12549,144.05,144.03,6.9429]
[1723800818674,0.12549,144.06,144.03,6.9429]
[1723800819652,0.12549,144.05,144.03,6.9429]
[1723800819869,0.25098,144.06,144.03,6.9429]
[1723800821281,1.20227205,144.08,144.05,6.9419]
[1723800821584,6.9406,144.08,144.04,6.9423]
[1723800822351,6.9414,144.07,144.03,24.3]
[1723800822579,0.12549,144.06,144.03,24.3]
[1723800822747,0.25098,144.06,144.03,24.3]
[1723800825493,1.98656669,144.06,144.03,24.3]
[1723800825799,0.12549,144.05,144.03,24.3]
[1723800826373,0.25098,144.06,144.03,24.3]
[1723800829604,0.12549,144.05,144.03,17.3572]
[1723800829807,0.12549,144.04,144.03,17.3572]
[1723800830105,0.25098,144.04,144.01,6.9438]
[1723800830775,7.19378,144.04,144.0,17.3602]
[1723800830979,7.19378,144.04,143.97,37.3638]
[1723800830980,0.12549,144.03,143.97,37.3638]
[1723800831192,0.12549,144.02,143.99,6.9446]
[1723800831376,0.12549,144.02,144.01,6.9439]
[1723800831707,0.12549,144.02,144.0,6.9443]
[1723800831892,0.12549,144.03,144.0,6.9443]
[1723800832213,6.9425,144.04,144.01,6.9439]
[1723800832214,0.12549,144.04,144.01,6.9439]
[1723800832385,0.37647,144.04,144.01,6.9439]
[1723800832704,0.25098,144.04,144.01,6.9439]
[1723800832915,0.12549,144.04,144.02,6.9434]
[1723800833891,6.9409,144.08,144.04,6.9424]
[1723800834195,6.9409,144.08,144.03,17.3572]
[1723800834196,6.9409,144.08,144.03,24.3]
[1723800835187,0.12549,144.06,144.03,24.3]
[1723800837412,0.12549,144.06,144.04,6.9424]
[1723800838700,0.12549,144.06,144.03,24.3]
[1723800838904,0.25098,144.06,144.03,24.3]
[1723800839224,0.12549,144.04,144.03,24.3]
[1723800840498,0.12549,144.05,144.04,6.9425]
[1723800840832,0.12549,144.07,144.04,6.9425]
[1723800841204,0.12549,144.08,144.04,6.9425]
[1723800841529,6.9402,144.09,144.05,6.9417]
[1723800842609,0.12549,144.08,144.05,6.9417]
[1723800842823,0.37647,144.08,144.05,6.9417]
[1723800844201,0.12549,144.07,144.03,17.3572]
[1723800845006,0.12549,144.07,144.04,6.9424]
[1723800845205,0.12549,144.06,144.04,6.9424]
[1723800845526,0.25098,144.06,144.04,6.9424]
[1723800845905,0.12549,144.07,144.04,6.9424]
[1723800846108,0.12549,144.07,144.03,17.3572]
[1723800846308,0.12549,144.07,144.04,6.9423]
[1723800846701,0.12549,144.07,144.05,6.942]
[1723800847121,0.12549,144.07,144.04,6.9423]
[1723800848532,0.12549,144.07,144.03,24.3]
[1723800848916,0.12549,144.07,144.03,17.3572]
[1723800849126,0.25098,144.07,144.02,6.943]
[1723800849331,0.12549,144.05,144.02,6.943]
[1723800852239,7.06749,144.05,144.01,6.9438]
[1723800852441,7.06749,144.05,144.0,17.3602]
[1723800852442,0.25098,144.04,144.02,6.9434]
[1723800852604,0.12549,144.05,144.02,6.9434]
[1723800852808,0.12549,144.05,144.03,6.9429]
[1723800856229,0.12549,144.06,144.04,6.9425]
[1723800856413,0.37647,144.07,144.04,6.9425]
[1723800861143,0.37647,144.07,144.05,6.942]
[1723800861338,0.12549,144.07,144.05,6.942]
[1723800861645,0.37647,144.08,144.05,6.942]
[1723800864456,0.37647,144.08,144.06,6.9414]
[1723800864662,0.25098,144.08,144.06,6.9414]
[1723800864859,0.25098,144.09,144.06,6.9414]
[1723800865270,1.20766032,144.12,144.06,20.0]
[1723800865484,22.55578464,144.14,144.06,20.0]
[1723800865485,16.3149,144.14,144.08,17.3511]
[1723800865831,11.56741007,144.15,144.1,6.9395]
[1723800866055,11.56741007,144.15,144.11,6.9387]
[1723800866056,8.14471007,144.15,144.11,6.9387]
[1723800866227,6.9367,144.16,144.12,6.9384]
[1723800866432,8.1438024,144.17,144.12,6.9384]
[1723800866664,8.67140895,144.16,144.12,6.9384]
[1723800866865,6.937,144.16,144.12,6.9384]
[1723800867160,6.937,144.16,144.11,6.939]
[1723800867734,0.37647,144.15,144.11,6.939]
[1723800868067,0.12549,144.15,144.11,6.939]
[1723800868234,6.937,144.16,144.11,6.939]
[1723800868965,6.937,144.16,144.12,6.9384]
[1723800869537,0.12549,144.15,144.12,6.9384]
[1723800869743,0.25098,144.15,144.12,6.9384]
[1723800872361,7.18818,144.15,144.11,6.939]
[1723800872875,0.12549,144.14,144.11,6.939]
[1723800873068,0.12549,144.13,144.11,6.939]
[1723800873644,0.25098,144.14,144.11,6.939]
[1723800874251,19.28328082,144.14,144.1,17.3486]
[1723800874455,7.06359,144.13,144.1,17.3486]
[1723800874753,0.25098,144.12,144.1,17.3486]
[1723800877888,0.12549,144.12,144.1,24.288]
[1723800878988,0.12549,144.13,144.1,24.288]
[1723800880092,0.37647,144.14,144.1,24.288]
[1723800880272,0.25098,144.14,144.11,6.9391]
[1723800880462,2.94169804,144.17,144.1,17.3486]
[1723800880463,6.9368,144.16,144.1,37.3486]
[1723800880662,0.12549,144.15,144.1,17.3486]
[1723800880885,0.12549,144.15,144.12,6.9385]
[1723800881996,0.25098,144.15,144.12,6.9385]
[1723800883896,8.1436024,144.17,144.12,6.9385]
[1723800884671,8.1436024,144.17,144.13,6.9381]
[1723800884871,7.06219,144.16,144.12,24.2848]
[1723800885058,0.12549,144.15,144.12,24.2848]
[1723800885399,7.06219,144.16,144.12,24.2848]
[1723800885400,0.12549,144.16,144.13,6.9381]
[1723800885697,1.2072024,144.17,144.14,6.9376]
[1723800885927,1.2072024,144.17,144.14,17.3438]
[1723800886071,17.2942,144.22,144.17,6.9359]
[1723800886397,17.2942,144.22,144.18,6.9356]
[1723800886857,6.9342,144.22,144.18,6.9356]
[1723800887388,16.4346,144.24,144.18,6.9356]
[1723800887389,6.9335,144.23,144.19,6.9351]
[1723800888163,6.9335,144.23,144.18,24.2742]
[1723800888464,17.2935,144.23,144.18,24.2742]
[1723800889192,0.50196,144.22,144.18,24.2742]
[1723800890582,0.50196,144.22,144.19,6.9351]
[1723800891588,0.50196,144.22,144.18,24.2745]
[1723800893079,0.37647,144.22,144.19,6.9351]
[1723800897273,0.37647,144.22,144.18,24.2746]
[1723800898705,10.73647,144.22,144.18,24.2746]
[1723800900822,10.73647,144.22,144.19,6.9351]
[1723800901608,0.37647,144.22,144.19,6.9351]
[1723800901816,0.37647,144.22,144.18,17.3389]
[1723800901817,0.12549,144.22,144.2,8.32161937]
[1723800902129,0.25098,144.23,144.2,17.3361]
[1723800902290,0.25098,144.23,144.2,24.2707]
[1723800903188,0.12549,144.24,144.2,24.2707]
[1723800904603,0.12549,144.23,144.2,24.2707]
[1723800904813,10.61098,144.23,144.2,24.2707]
[1723800905005,10.61098,144.23,144.2,17.3361]
[1723800906016,10.61098,144.23,144.2,24.2708]
[1723800906325,17.54438,144.23,144.2,17.3361]
[1723800906492,0.12549,144.22,144.19,6.9352]
[1723800906824,0.12549,144.22,144.16,6.9364]
[1723800906825,0.12549,144.19,144.16,6.9364]
[1723800906984,0.12549,144.19,144.16,6.9366]
[1723800907184,10.48549,144.19,144.16,6.9366]
[1723800907501,0.12549,144.18,144.16,6.9366]
[1723800908415,10.36,144.21,144.16,37.3413]
[1723800908586,10.36,144.23,144.19,6.9352]
[1723800908945,17.3691198,144.25,144.2,6.9346]
[1723800909228,17.3691198,144.25,144.2,24.2708]
[1723800909397,6.9329,144.24,144.2,24.2708]
[1723800910117,17.3691198,144.25,144.2,24.2708]
[1723800910292,0.0766198,144.25,144.23,6.9333]
[1723800912110,0.2021098,144.25,144.23,6.9333]
[1723800912997,0.0766198,144.25,144.23,6.9333]
[1723800915698,0.0766198,144.25,144.24,20.0]
[1723800916025,0.0766198,144.25,144.22,52.0029]
[1723800916026,0.0766198,144.25,144.22,72.0029]
[1723800916202,0.0766198,144.25,144.24,26.9328]
[1723800916917,0.0766198,144.25,144.24,6.9328]
[1723800919021,0.2021098,144.25,144.22,17.3341]
[1723800919197,10.36,144.24,144.22,17.3341]
[1723800920897,0.12549,144.23,144.2,6.9346]
[1723800921127,0.12549,144.23,144.21,6.9342]
[1723800921424,10.36,144.24,144.21,6.9342]
[1723800921631,10.36,144.24,144.22,6.9337]
[1723800921847,10.5621098,144.25,144.22,6.9337]
[1723800923040,10.5621098,144.25,144.21,24.2694]
[1723800924642,0.2021098,144.25,144.22,6.9338]
[1723800924809,10.5621098,144.25,144.22,6.9338]
[1723800928328,10.5621098,144.25,144.21,17.3353]
[1723800928329,10.5621098,144.25,144.21,24.2694]
[1723800934145,0.25098,144.24,144.21,24.2694]
[1723800934653,0.12549,144.22,144.18,24.274]
[1723800934819,10.36,144.21,144.18,24.274]
[1723800935236,10.36,144.21,144.18,17.3386]
[1723800935441,0.12549,144.18,144.15,17.3421]
[1723800935658,0.12549,144.18,144.14,6.9376]
[1723800935659,10.36,144.17,144.14,6.9376]
[1723800936023,0.25098,144.16,144.14,6.9376]
[1723800936333,0.12549,144.18,144.16,6.9366]
[1723800936516,10.36,144.19,144.16,6.9366]
[1723800936950,10.36,144.19,144.17,6.9362]
[1723800937250,10.36,144.19,144.14,17.3435]
[1723800937251,10.36,144.19,144.16,6.9366]
[1723800938127,0.12549,144.18,144.16,6.9366]
[1723800939626,0.12549,144.18,144.17,6.9362]
[1723800939824,0.12549,144.18,144.16,24.2778]
[1723800940128,0.12549,144.18,144.13,33.6919]
[1723800940440,0.25098,144.18,144.14,6.9375]
[1723800940834,0.25098,144.18,144.15,6.937]
[1723800941255,0.12549,144.18,144.16,6.9366]
[1723800943118,0.12549,144.18,144.15,24.2797]
[1723800944154,0.12549,144.18,144.15,17.3427]
[1723800944155,7.06129,144.18,144.15,17.3427]
[1723800944322,0.25098,144.18,144.15,24.2796]
[1723800944945,10.36,144.17,144.15,24.2796]
[1723800946355,10.36,144.17,144.16,6.9367]
[1723800949754,10.36,144.17,144.15,24.2798]
[1723800951867,0.12549,144.16,144.12,17.346]
[1723800952050,0.25098,144.16,144.12,17.346]
[1723800952253,10.36,144.15,144.13,6.9378]
[1723800954367,0.12549,144.14,144.12,24.2845]
[1723800954672,0.25098,144.14,144.12,24.2845]
[1723800955364,10.36,144.13,144.09,17.3493]
[1723800955559,0.25098,144.14,144.09,17.3493]
[1723800955560,10.36,144.11,144.09,17.3493]
[1723800955949,0.12549,144.1,144.07,6.9406]
[1723800956147,0.37647,144.1,144.07,6.9406]
[1723800956359,0.25098,144.1,144.07,6.9406]
[1723800956658,0.12549,144.1,144.07,6.9406]
[1723800956853,10.73647,144.11,144.07,6.9406]
[1723800957161,10.73647,144.11,144.06,37.3537]
[1723800957162,10.48549,144.11,144.06,37.3537]
[1723800957359,10.48549,144.11,144.08,6.9402]
[1723800959466,10.48549,144.11,144.07,6.9409]
[1723800959679,10.36,144.09,144.06,24.2951]
[1723800960996,10.36,144.09,144.07,6.9409]
[1723800961296,10.36,144.09,144.06,17.3537]
[1723800961592,10.36,144.09,144.07,6.941]
[1723800970491,10.36,144.09,144.06,24.2951]
[1723800970868,0.12549,144.08,144.06,24.2951]
[1723800971272,0.12549,144.09,144.07,6.9409]
[1723800972084,1.20618503,144.14,144.08,17.3509]
[1723800972474,10.36,144.12,144.08,17.3509]
[1723800974002,10.36,144.12,144.1,6.9396]
[1723800974394,10.36,144.12,144.11,6.9391]
[1723800975192,23.41839492,144.15,144.11,6.9391]
[1723800975394,10.48549,144.14,144.11,6.9391]
[1723800976616,10.36,144.13,144.11,6.9391]
[1723800977214,10.36,144.13,144.1,24.288]
[1723800978136,0.12549,144.13,144.1,24.288]
[1723800978301,10.36,144.12,144.1,24.288]
[1723800980314,11.56601005,144.16,144.12,17.3458]
[1723800980518,10.36,144.16,144.12,17.3458]
[1723800980820,17.2968,144.16,144.12,24.2843]
[1723800981601,0.12549,144.15,144.12,24.2843]
[1723800982511,0.25098,144.15,144.12,24.2843]
[1723800985007,0.25098,144.15,144.09,16.2194]
[1723800985008,0.12549,144.13,144.11,6.939]
[1723800985197,0.12549,144.13,144.09,33.5689]
[1723800985198,10.36,144.12,144.1,6.9394]
[1723800985396,0.12549,144.11,144.08,6.9405]
[1723800985610,10.36,144.1,144.08,6.9405]
[1723800990313,0.12549,144.11,144.09,6.9401]
[1723800990532,10.36,144.12,144.09,6.9401]
[1723800990738,17.2999,144.1,144.06,22.336]
[1723800990910,0.12549,144.09,144.06,6.9414]
[1723800991237,10.36,144.08,144.06,6.9414]
[1723800992932,0.12549,144.07,144.03,6.9425]
[1723800993178,0.12549,144.07,144.04,6.9424]
[1723800993179,10.36,144.06,144.04,6.9424]
[1723800993704,10.36,144.06,144.02,32.9996]
[1723800994022,10.36,144.06,144.03,6.9429]
[1723800995703,10.36,144.06,144.02,24.3014]
[1723800996956,10.36,144.04,144.02,24.3014]
[1723800998624,10.36,144.04,144.02,17.3581]
[1723800998824,0.12549,144.03,144.02,17.3581]
[1723800999029,0.25098,144.03,144.0,6.9443]
[1723801002964,0.12549,144.03,144.02,6.9434]
[1723801003129,10.36,144.04,144.02,6.9434]
[1723801004494,10.36,144.04,144.03,6.9429]
[1723801004659,0.12549,144.05,144.03,6.9429]
[1723801004847,0.25098,144.05,144.03,6.9429]
[1723801005356,0.25098,144.05,144.02,6.9433]
[1723801005951,0.25098,144.05,144.03,6.9429]
[1723801007657,10.36,144.06,144.03,6.9429]
[1723801008480,1.20396473,144.08,144.01,41.0914]
[1723801008686,15.1019,144.11,144.08,6.9405]
[1723801008978,8.1422766,144.12,144.08,6.9405]
[1723801009183,8.1422766,144.12,144.07,24.293]
[1723801009772,10.36,144.1,144.07,24.293]
[1723801014986,0.12549,144.09,144.07,17.3521]
[1723801015585,0.12549,144.09,144.07,24.2931]
[1723801022015,0.12549,144.09,144.07,17.3521]
[1723801023293,0.12549,144.09,144.07,24.293]
[1723801023494,10.36,144.1,144.07,24.293]
[1723801028195,17.2996,144.1,144.07,17.3521]
[1723801028399,10.36,144.1,144.07,24.293]
[1723801028696,15.76706011,144.16,144.11,6.9386]
[1723801028697,6.62965686,144.16,144.11,6.9386]
[1723801029001,8.14112409,144.15,144.11,6.9389]
[1723801029418,6.9373,144.15,144.11,6.9389]
[1723801029604,8.14150203,144.15,144.11,6.9389]
[1723801029810,10.36,144.14,144.11,6.9389]
[1723801032839,10.36,144.12,144.1,6.9394]
[1723801034809,10.36,144.12,144.11,6.9391]
[1723801035010,10.36,144.14,144.11,6.9391]
[1723801037509,8.39248203,144.15,144.11,6.9391]
[1723801037714,10.36,144.14,144.11,6.9391]
[1723801044526,8.39248203,144.15,144.11,6.9391]
[1723801044527,1.20420203,144.15,144.11,17.3473]
[1723801044839,6.9359,144.18,144.13,6.9378]
[1723801045220,6.9362,144.17,144.13,6.9378]
[1723801045929,0.12549,144.16,144.13,6.9378]
[1723801046121,0.25098,144.16,144.13,6.9378]
[1723801046324,0.12549,144.17,144.13,6.9378]
[1723801046525,10.61098,144.17,144.13,6.9378]
[1723801046726,1.20386988,144.2,144.14,1.38719993]
[1723801047015,10.36,144.2,144.17,6.9358]
[1723801048260,10.36,144.2,144.18,6.9357]
[1723801048459,10.36,144.2,144.18,8.32268582]
[1723801049443,10.36,144.2,144.18,6.9357]
[1723801050433,10.36,144.2,144.18,8.32262925]
[1723801051373,10.36,144.2,144.18,6.9357]
[1723801052170,10.36,144.2,144.18,8.32262818]
[1723801052342,10.36,144.22,144.19,6.9352]
[1723801053870,10.36,144.22,144.18,6.9355]
[1723801054440,10.36,144.22,144.19,6.9352]
[1723801056371,10.36,144.21,144.19,6.9352]
[1723801059277,10.36,144.21,144.18,6.9356]
[1723801059676,10.36,144.21,144.19,6.9351]
[1723801065096,0.25098,144.23,144.2,6.9348]
[1723801065275,0.12549,144.22,144.2,6.9348]
[1723801065460,10.61098,144.23,144.2,8.32153895]
[1723801065659,10.61098,144.23,144.2,6.9348]
[1723801067294,10.61098,144.23,144.19,24.2729]
[1723801067594,10.36,144.21,144.19,24.2729]
[1723801072980,10.48549,144.23,144.19,24.2729]
[1723801073288,10.48549,144.23,144.2,6.9345]
[1723801074197,10.4366198,144.25,144.21,18.72218735]
[1723801074397,10.4366198,144.25,144.22,8.31996808]
[1723801074599,10.4366198,144.25,144.21,24.2696]
[1723801074969,10.4366198,144.25,144.22,6.9337]
[1723801076096,7.05959,144.22,144.18,30.5327]
[1723801076401,7.05959,144.22,144.18,24.2742]
[1723801076709,7.05959,144.22,144.18,17.3385]
[1723801076906,0.12549,144.22,144.18,24.2742]
[1723801077077,7.05849,144.24,144.19,6.9348]
[1723801077479,10.36,144.22,144.19,6.9348]
[1723801078384,10.36,144.22,144.18,24.2742]
[1723801078576,10.36,144.2,144.18,24.2742]
[1723801079593,10.36,144.22,144.18,24.2742]
[1723801080682,10.36,144.2,144.18,24.2742]
[1723801083180,10.36,144.2,144.19,6.9352]
[1723801084286,10.36,144.2,144.18,17.3385]
[1723801086199,10.36,144.2,144.18,24.2742]
[1723801086883,10.36,144.2,144.19,6.9352]
[1723801087624,10.36,144.24,144.21,6.934]
[1723801087811,10.36,144.24,144.2,24.2712]
[1723801088001,17.2929,144.24,144.2,24.2712]
[1723801088731,10.36,144.22,144.2,24.2712]
[1723801092335,10.36,144.23,144.2,24.2712]
[1723801096334,7.0091198,144.25,144.2,24.2712]
[1723801096536,10.36,144.22,144.2,24.2712]
[1723801098241,10.36,144.22,144.19,6.9351]
[1723801098420,0.0766198,144.25,144.16,22.0183]
[1723801098421,10.36,144.2,144.16,22.0183]
[1723801098729,10.36,144.17,144.14,23.751]
[1723801099116,10.36,144.17,144.16,6.9367]
[1723801106044,10.36,144.21,144.16,17.3408]
[1723801107132,10.36,144.21,144.18,6.9357]
[1723801107535,10.36,144.19,144.16,24.2774]
[1723801108652,10.36,144.19,144.17,6.9361]
[1723801109145,10.36,144.19,144.16,24.2773]
[1723801111724,10.36,144.19,144.16,17.3408]
[1723801111925,10.36,144.19,144.16,24.2775]
[1723801112346,10.36,144.19,144.17,6.9361]
[1723801113053,10.36,144.19,144.18,6.9357]
[1723801113427,10.36,144.19,144.17,6.9361]
[1723801113632,10.36,144.19,144.16,24.2773]
[1723801117364,10.36,144.19,144.16,17.3408]
[1723801121259,10.36,144.19,144.16,24.2773]
[1723801122758,10.36,144.19,144.17,6.9362]
[1723801123638,10.61098,144.2,144.17,6.9362]
[1723801124776,10.36,144.18,144.16,24.2775]
[1723801128276,0.12549,144.17,144.13,32.7559]
[1723801128769,0.12549,144.17,144.14,6.9373]
[1723801130453,10.36,144.16,144.14,6.9373]
[1723801131949,0.12549,144.15,144.13,24.2825]
[1723801132149,0.12549,144.15,144.13,17.3445]
[1723801132853,7.31367,144.15,144.11,6.939]
[1723801133066,7.18818,144.15,144.11,6.939]
[1723801133877,10.36,144.14,144.11,6.939]
[1723801134059,7.18818,144.15,144.08,6.9402]
[1723801134060,10.36,144.12,144.08,6.9402]
[1723801134377,0.25098,144.11,144.08,6.9402]
[1723801134565,10.36,144.1,144.08,6.9402]
[1723801134886,10.36,144.1,144.07,24.2931]
[1723801135375,7.19008,144.11,144.07,17.3521]
[1723801135376,10.48549,144.08,144.07,17.3521]
[1723801136642,10.48549,144.08,144.06,6.9415]
[1723801141274,10.36,144.1,144.07,6.941]
[1723801143583,10.36,144.1,144.06,24.2947]
[1723801144300,0.25098,144.09,144.06,24.2947]
[1723801147364,0.12549,144.1,144.07,6.941]
[1723801147585,0.25098,144.1,144.07,6.941]
[1723801147882,0.25098,144.1,144.08,6.9405]
[1723801149266,10.48549,144.11,144.08,6.9405]
[1723801149267,10.36,144.11,144.08,6.9405]
[1723801150066,0.25098,144.1,144.07,6.9409]
[1723801152895,0.25098,144.1,144.08,6.9405]
[1723801153658,10.36,144.11,144.09,6.9401]
[1723801153973,0.12549,144.11,144.09,6.9401]
[1723801156303,0.12549,144.11,144.09,8.32797468]
[1723801156583,0.12549,144.11,144.09,6.9401]
[1723801162490,0.12549,144.12,144.1,6.9394]
[1723801162713,0.25098,144.12,144.1,6.9394]
[1723801163218,10.36,144.13,144.1,6.9394]
[1723801164205,10.17655887,144.13,144.1,6.9394]
[1723801165792,0.25098,144.14,144.1,17.3488]
[1723801165985,10.36,144.14,144.1,17.3488]
[1723801166184,0.12549,144.11,144.09,6.94]
[1723801166403,0.37647,144.11,144.09,6.94]
[1723801168012,0.12549,144.09,144.04,23.8708]
[1723801168184,2.11175803,144.09,144.04,23.8708]
[1723801168504,0.37647,144.09,144.05,6.9416]
[1723801168695,2.11177215,144.09,144.05,6.9416]
[1723801169309,0.37647,144.09,144.05,6.9416]
[1723801172293,2.11174212,144.09,144.05,6.9416]
[1723801173602,10.36,144.08,144.05,6.9416]
[1723801174399,0.37647,144.09,144.06,6.9415]
[1723801174610,10.73647,144.09,144.06,6.9415]
[1723801174806,10.36,144.07,144.05,6.9419]
[1723801176987,0.12549,144.06,144.04,24.2979]
[1723801177186,0.25098,144.06,144.04,24.2979]
[1723801178519,0.25098,144.06,144.04,17.3555]
[1723801183927,0.25098,144.06,144.03,6.9428]
[1723801184218,0.12549,144.05,144.03,6.9428]
[1723801184427,0.12549,144.04,144.03,6.9428]
[1723801186203,0.12549,144.06,144.04,6.9425]
[1723801186696,0.12549,144.07,144.04,6.9425]
[1723801187915,0.25098,144.07,144.04,6.9425]
[1723801188105,0.12549,144.06,144.04,6.9425]
[1723801188298,0.12549,144.05,144.03,24.2999]
[1723801196233,0.25098,144.05,144.03,24.2999]
[1723801196413,0.25098,144.05,144.02,6.9432]
[1723801196741,0.25098,144.05,144.0,24.3046]
[1723801196742,0.12549,144.03,144.0,24.3046]
[1723801197033,0.12549,144.03,143.97,24.3092]
[1723801197034,0.12549,144.0,143.97,24.3092]
[1723801197929,1.86189522,144.0,143.97,24.3092]
[1723801198146,0.12549,143.99,143.97,24.3092]
[1723801198301,0.12549,143.98,143.97,24.3092]
[1723801199667,0.12549,143.99,143.97,24.3092]
[1723801199855,0.25098,143.99,143.97,24.3092]
[1723801200849,0.12549,144.01,143.99,6.9449]
[1723801201347,10.36,144.02,143.99,6.9449]
[1723801201348,6.9423,144.05,144.0,6.9444]
[1723801201521,7.24861945,144.08,144.02,6.9433]
[1723801201722,13.21566519,144.09,144.02,6.9433]
[1723801202219,6.9416,144.06,144.01,24.303]
[1723801202430,10.36,144.05,144.01,24.303]
[1723801202851,0.37647,144.04,144.01,24.303]
[1723801203220,10.36,144.05,144.02,6.9434]